bitfinex/quotes_BTCUSD_20241028
["timestamp","ask_amount","ask_price","bid_price","bid_amount"]
[1730094538981,1e-06,67816.0,67815.0,0.54090056]
[1730094539605,1e-06,67816.0,67815.0,0.53890056]
[1730094540042,1e-06,67816.0,67815.0,0.54090056]
[1730094540488,1e-06,67816.0,67815.0,0.53890056]
[1730094544277,1e-06,67816.0,67815.0,0.59365112]
[1730094545410,1e-06,67816.0,67815.0,0.54979254]
[1730094545638,1e-06,67816.0,67815.0,0.55179254]
[1730094546280,1e-06,67816.0,67815.0,0.54979254]
[1730094546720,1e-06,67816.0,67815.0,0.45749779]
[1730094546965,1e-06,67816.0,67815.0,0.54979254]
[1730094547180,1e-06,67816.0,67815.0,0.61758042]
[1730094547835,1e-06,67816.0,67815.0,0.61789825]
[1730094548288,1e-06,67816.0,67815.0,0.7716032]
[1730094548515,1e-06,67816.0,67815.0,0.7736032]
[1730094549370,1e-06,67816.0,67815.0,0.70749749]
[1730094551302,1e-06,67816.0,67815.0,0.79563844]
[1730094551716,1e-06,67816.0,67815.0,0.79363844]
[1730094552132,1e-06,67816.0,67815.0,0.79563844]
[1730094554451,1e-06,67816.0,67815.0,0.70749749]
[1730094556373,1e-06,67816.0,67815.0,0.70549749]
[1730094556598,1e-06,67816.0,67815.0,0.70749749]
[1730094557023,1e-06,67816.0,67815.0,0.70773883]
[1730094557247,1e-06,67816.0,67815.0,0.80003358]
[1730094557460,1e-06,67816.0,67815.0,0.91034419]
[1730094557667,1e-06,67816.0,67815.0,0.84600944]
[1730094559410,1e-06,67816.0,67815.0,0.66141994]
[1730094559625,1e-06,67816.0,67815.0,0.84600944]
[1730094560065,1e-06,67816.0,67815.0,0.75371469]
[1730094560314,1e-06,67816.0,67815.0,0.84600944]
[1730094560787,1e-06,67816.0,67815.0,1.26285873]
[1730094561684,1e-06,67816.0,67815.0,1.07626923]
[1730094561909,1e-06,67816.0,67815.0,1.17056398]
[1730094562354,1e-06,67816.0,67815.0,1.23488398]
[1730094563063,1e-06,67816.0,67815.0,1.23288398]
[1730094563300,1e-06,67816.0,67815.0,1.23488398]
[1730094564725,1e-06,67816.0,67815.0,1.23288398]
[1730094565193,1e-06,67816.0,67815.0,1.12258812]
[1730094566546,1e-06,67816.0,67815.0,1.23289676]
[1730094566772,1e-06,67816.0,67815.0,1.12258812]
[1730094567215,1e-06,67816.0,67815.0,1.21688287]
[1730094567483,1e-06,67816.0,67815.0,1.35634319]
[1730094568126,1e-06,67816.0,67815.0,1.26404844]
[1730094569425,1e-06,67816.0,67815.0,1.33934844]
[1730094569635,1e-06,67816.0,67815.0,1.43164319]
[1730094570752,1e-06,67816.0,67815.0,1.4303633]
[1730094571868,1e-06,67816.0,67815.0,1.4283633]
[1730094572082,1e-06,67816.0,67815.0,1.33806855]
[1730094572361,1e-06,67816.0,67815.0,1.4303633]
[1730094572533,1e-06,67816.0,67815.0,1.33806855]
[1730094572749,1e-06,67816.0,67815.0,1.16926855]
[1730094574782,1e-06,67816.0,67815.0,1.16726855]
[1730094575013,1e-06,67816.0,67815.0,1.16926855]
[1730094579700,1e-06,67816.0,67815.0,1.01460215]
[1730094579913,1e-06,67816.0,67815.0,1.17030389]
[1730094580196,1e-06,67816.0,67815.0,1.26259864]
[1730094584212,1e-06,67816.0,67815.0,1.26059864]
[1730094584444,1e-06,67816.0,67815.0,1.26053647]
[1730094584686,1e-06,67816.0,67815.0,1.26253647]
[1730094584901,1e-06,67816.0,67815.0,1.26053647]
[1730094585377,1e-06,67816.0,67815.0,1.26253647]
[1730094586527,1e-06,67816.0,67815.0,1.26053647]
[1730094587392,1e-06,67816.0,67815.0,1.26253647]
[1730094587615,1e-06,67816.0,67815.0,1.17024172]
[1730094589935,1e-06,67816.0,67815.0,1.26253647]
[1730094596691,1e-06,67816.0,67815.0,1.26053647]
[1730094597505,1e-06,67816.0,67815.0,1.26253647]
[1730094598770,1e-06,67816.0,67815.0,1.26053647]
[1730094600160,1e-06,67816.0,67815.0,1.26253647]
[1730094600368,1e-06,67816.0,67815.0,1.26053647]
[1730094600598,1e-06,67816.0,67815.0,1.16824172]
[1730094600821,1e-06,67816.0,67815.0,1.17024172]
[1730094601241,1e-06,67816.0,67815.0,1.26053647]
[1730094601445,1e-06,67816.0,67815.0,1.26253647]
[1730094601635,1e-06,67816.0,67815.0,1.17024172]
[1730094601851,1e-06,67816.0,67815.0,1.16975557]
[1730094602272,1e-06,67816.0,67815.0,1.26205032]
[1730094603205,1e-06,67816.0,67815.0,1.26005032]
[1730094603428,1e-06,67816.0,67815.0,1.26205032]
[1730094603653,1e-06,67816.0,67815.0,1.26005032]
[1730094603868,1e-06,67816.0,67815.0,1.26205032]
[1730094604291,1e-06,67816.0,67815.0,1.26005032]
[1730094604938,1e-06,67816.0,67815.0,1.26205032]
[1730094605809,1e-06,67816.0,67815.0,1.26005032]
[1730094606229,1e-06,67816.0,67815.0,1.26205032]
[1730094606891,1e-06,67816.0,67815.0,1.26005032]
[1730094607535,1e-06,67816.0,67815.0,1.07546082]
[1730094607758,1e-06,67816.0,67815.0,1.16775557]
[1730094608611,1e-06,67816.0,67815.0,1.16975557]
[1730094609047,1e-06,67816.0,67815.0,1.26205032]
[1730094609273,1e-06,67816.0,67815.0,1.16975557]
[1730094611012,1e-06,67816.0,67815.0,1.26205032]
[1730094611209,1e-06,67816.0,67815.0,1.16775557]
[1730094611889,1e-06,67816.0,67815.0,1.16975557]
[1730094613071,1e-06,67816.0,67815.0,1.26205032]
[1730094615787,0.21984948,67825.0,67815.0,1.26205032]
[1730094615788,0.16087448,67825.0,67824.0,0.16444]
[1730094616019,0.001672,67828.0,67827.0,0.287433]
[1730094616233,0.001672,67828.0,67827.0,0.59441469]
[1730094617337,0.001672,67828.0,67827.0,0.53323156]
[1730094617996,0.001672,67828.0,67827.0,0.53423156]
[1730094618214,0.001672,67828.0,67827.0,0.53923156]
[1730094618715,0.001672,67828.0,67827.0,0.53723156]
[1730094619364,0.001672,67828.0,67827.0,0.63152631]
[1730094619612,0.001672,67828.0,67827.0,0.85215051]
[1730094620034,0.001672,67828.0,67827.0,0.69345118]
[1730094620259,0.001672,67828.0,67827.0,0.78574593]
[1730094620471,0.001672,67828.0,67827.0,0.70228248]
[1730094620703,0.001672,67828.0,67827.0,0.70428248]
[1730094620915,0.001672,67828.0,67827.0,0.70228248]
[1730094621332,0.001672,67828.0,67827.0,0.70428248]
[1730094621539,0.001672,67828.0,67827.0,0.77039306]
[1730094621756,0.001672,67828.0,67827.0,0.77060138]
[1730094622022,0.00167,67850.0,67827.0,0.77060138]
[1730094622023,1e-06,67835.0,67834.0,0.015]
[1730094622252,1e-06,67838.0,67837.0,0.285412]
[1730094622471,1e-06,67838.0,67837.0,1.01188876]
[1730094622700,1e-06,67838.0,67837.0,0.94583809]
[1730094622917,1e-06,67838.0,67837.0,0.85354334]
[1730094623146,1e-06,67838.0,67837.0,0.94583809]
[1730094623367,1e-06,67838.0,67837.0,0.76671897]
[1730094623576,1e-06,67838.0,67837.0,1.01158923]
[1730094623797,1e-06,67838.0,67837.0,0.94558082]
[1730094624005,1e-06,67838.0,67837.0,0.85328607]
[1730094624225,1e-06,67838.0,67837.0,0.85314654]
[1730094624453,1e-06,67838.0,67837.0,0.86298363]
[1730094624669,1e-06,67838.0,67837.0,0.58539413]
[1730094624887,1e-06,67838.0,67837.0,0.53821056]
[1730094625109,1e-06,67838.0,67837.0,0.53621056]
[1730094625326,1e-06,67838.0,67837.0,0.53821056]
[1730094625778,1e-06,67838.0,67837.0,0.53621056]
[1730094626024,1e-06,67838.0,67837.0,1.02661012]
[1730094626241,1e-06,67838.0,67837.0,0.98261985]
[1730094626459,1e-06,67838.0,67837.0,1.08571782]
[1730094627597,1e-06,67838.0,67837.0,1.08771782]
[1730094629279,1e-06,67838.0,67837.0,0.99542307]
[1730094629486,1e-06,67838.0,67837.0,1.08771782]
[1730094630759,1e-06,67838.0,67837.0,0.99542307]
[1730094631880,1e-06,67838.0,67837.0,0.99342307]
[1730094633006,1e-06,67838.0,67837.0,0.99542307]
[1730094633232,1e-06,67838.0,67837.0,0.99342307]
[1730094637318,1e-06,67838.0,67837.0,0.99542307]
[1730094637802,1e-06,67838.0,67837.0,0.99342307]
[1730094639492,1e-06,67838.0,67837.0,0.99542307]
[1730094641665,1e-06,67838.0,67837.0,0.99342307]
[1730094643413,1e-06,67838.0,67837.0,0.99542307]
[1730094644084,1e-06,67838.0,67837.0,0.99342307]
[1730094644350,1e-06,67838.0,67837.0,0.99542307]
[1730094645015,2e-07,67840.0,67839.0,0.316967]
[1730094645260,2e-07,67840.0,67839.0,0.46547081]
[1730094646437,2e-07,67840.0,67839.0,0.46847081]
[1730094646934,0.00167,67842.0,67839.0,0.46847081]
[1730094646935,2e-07,67842.0,67841.0,0.015]
[1730094647184,0.0775,67867.0,67866.0,0.270349]
[1730094647417,0.0775,67867.0,67866.0,0.275349]
[1730094647667,0.0825547,67867.0,67866.0,0.304909]
[1730094647943,0.0775,67867.0,67866.0,0.304909]
[1730094648129,0.0775,67867.0,67866.0,0.275349]
[1730094648793,0.0775,67867.0,67866.0,0.279349]
[1730094648998,0.0775,67867.0,67866.0,0.282349]
[1730094649435,0.0775,67867.0,67866.0,0.43285281]
[1730094649662,0.0775,67867.0,67866.0,0.42985281]
[1730094649869,0.0775,67867.0,67866.0,0.42585281]
[1730094650281,0.0775,67867.0,67866.0,0.42985281]
[1730094650963,0.0775,67867.0,67866.0,0.43685281]
[1730094651184,0.0775,67867.0,67866.0,0.43185281]
[1730094651397,0.1728,67867.0,67866.0,0.43185281]
[1730094652034,0.1728,67867.0,67866.0,0.42885281]
[1730094652506,0.1728,67867.0,67866.0,0.43185281]
[1730094652939,0.1728,67867.0,67866.0,0.42385281]
[1730094653376,0.18006731,67867.0,67866.0,0.42785281]
[1730094653584,0.1728,67867.0,67866.0,0.42785281]
[1730094653801,0.1728,67867.0,67866.0,0.42385281]
[1730094654013,0.1728,67867.0,67866.0,0.42085281]
[1730094654240,0.1728,67867.0,67866.0,0.42385281]
[1730094654539,0.1728,67867.0,67866.0,0.42685281]
[1730094654764,0.1728,67867.0,67866.0,0.42385281]
[1730094655184,0.1728,67867.0,67866.0,0.42585281]
[1730094656028,0.1728,67867.0,67866.0,0.42285281]
[1730094657101,0.1728,67867.0,67866.0,0.42085281]
[1730094657488,0.1728,67867.0,67866.0,0.42185281]
[1730094657910,0.1728,67867.0,67866.0,0.42085281]
[1730094658116,0.173622,67867.0,67866.0,0.42085281]
[1730094658252,0.18191039,67867.0,67866.0,0.42085281]
[1730094659917,0.18191039,67867.0,67866.0,0.39785281]
[1730094660147,0.26691675,67867.0,67866.0,0.39785281]
[1730094660562,0.27420514,67867.0,67866.0,0.39785281]
[1730094661204,0.10140514,67867.0,67852.0,0.1]
[1730094661441,0.175,67860.0,67859.0,0.147364]
[1730094661639,0.18226304,67860.0,67859.0,0.59259581]
[1730094662253,0.26729475,67860.0,67859.0,0.59259581]
[1730094662467,0.27455779,67860.0,67859.0,0.59259581]
[1730094662694,0.18226304,67860.0,67859.0,0.59259581]
[1730094663315,0.18226304,67860.0,67859.0,0.69259581]
[1730094664401,0.18826304,67860.0,67859.0,0.69259581]
[1730094667711,0.181,67860.0,67859.0,0.69259581]
[1730094668402,0.175,67860.0,67859.0,0.69259581]
[1730094669056,0.18225813,67860.0,67859.0,0.69259581]
[1730094669470,0.18225813,67860.0,67859.0,0.69359581]
[1730094670357,0.18225813,67860.0,67859.0,0.69523981]
[1730094670778,0.18308013,67860.0,67859.0,0.69523981]
[1730094672199,0.00808013,67860.0,67859.0,0.69523981]
[1730094672623,0.000822,67860.0,67859.0,0.69523981]
[1730094674429,0.000822,67860.0,67859.0,0.71823981]
[1730094674637,0.000822,67860.0,67859.0,0.72323981]
[1730094675710,0.000822,67860.0,67859.0,0.73326032]
[1730094675919,0.000822,67860.0,67859.0,0.73726032]
[1730094676158,0.000822,67860.0,67859.0,0.73326032]
[1730094676566,0.000822,67860.0,67859.0,0.73726032]
[1730094677200,0.000822,67860.0,67859.0,0.74026032]
[1730094677869,0.000822,67860.0,67859.0,0.73726032]
[1730094678066,0.000822,67860.0,67859.0,0.74026032]
[1730094680328,0.000822,67860.0,67859.0,0.76982032]
[1730094686834,0.000822,67860.0,67859.0,0.74026032]
[1730094687254,0.000822,67860.0,67859.0,0.75026032]
[1730094687662,0.000822,67860.0,67859.0,0.74726032]
[1730094688079,0.000822,67860.0,67859.0,0.74626032]
[1730094688488,0.000822,67860.0,67859.0,0.74726032]
[1730094688741,0.000822,67860.0,67859.0,0.74326032]
[1730094689150,0.000822,67860.0,67859.0,0.74726032]
[1730094689953,0.000822,67860.0,67859.0,0.75026032]
[1730094690428,0.000822,67860.0,67859.0,0.77982032]
[1730094700453,1e-06,67860.0,67859.0,0.77982032]
[1730094700663,1e-06,67860.0,67859.0,0.82378929]
[1730094701062,1e-06,67860.0,67859.0,0.77982032]
[1730094702177,1e-06,67860.0,67859.0,0.82377155]
[1730094703119,1e-06,67860.0,67859.0,0.77982032]
[1730094704432,1e-06,67860.0,67859.0,0.94922032]
[1730094704583,1e-06,67860.0,67859.0,0.95122032]
[1730094705795,1e-06,67860.0,67859.0,0.94922032]
[1730094706019,1e-06,67860.0,67859.0,0.99316582]
[1730094706775,1e-06,67860.0,67859.0,0.94922032]
[1730094708695,1e-06,67860.0,67859.0,0.95122032]
[1730094709377,1e-06,67860.0,67859.0,1.16750721]
[1730094709576,0.21984948,67874.0,67873.0,0.36762775]
[1730094709796,0.2259654,67874.0,67873.0,0.51813156]
[1730094710217,0.00611592,67874.0,67873.0,0.51813156]
[1730094710627,0.0971,67879.0,67878.0,0.247323]
[1730094710821,0.0971,67879.0,67878.0,0.39782681]
[1730094710958,0.0971,67879.0,67878.0,0.42082681]
[1730094711795,0.0971,67879.0,67878.0,0.42182681]
[1730094713270,0.1031,67879.0,67878.0,0.42282681]
[1730094713637,0.0933,67882.0,67879.0,0.15232]
[1730094713842,0.0933,67882.0,67879.0,0.42582381]
[1730094715321,0.0933,67882.0,67879.0,0.42982381]
[1730094715942,0.0933,67882.0,67879.0,0.43282381]
[1730094716483,0.0933,67882.0,67881.0,0.170316]
[1730094716646,0.0933,67882.0,67881.0,0.32081981]
[1730094717962,0.076635,67884.0,67882.0,0.023]
[1730094718130,0.076635,67884.0,67883.0,0.29781581]
[1730094718550,0.076635,67884.0,67883.0,0.32081581]
[1730094719625,0.076635,67884.0,67883.0,0.42081581]
[1730094720309,0.076635,67884.0,67883.0,0.42181581]
[1730094720567,0.076635,67884.0,67883.0,0.42381581]
[1730094725339,0.000835,67884.0,67883.0,0.42381581]
[1730094725571,0.000835,67884.0,67883.0,0.52111056]
[1730094726773,0.000835,67884.0,67883.0,0.61340531]
[1730094727153,0.000835,67884.0,67883.0,0.52111056]
[1730094727368,0.000835,67884.0,67883.0,0.62651056]
[1730094727567,0.000835,67884.0,67883.0,0.83132531]
[1730094727568,1e-06,67884.0,67883.0,0.83132531]
[1730094728151,1e-06,67884.0,67883.0,0.82832531]
[1730094728618,1e-06,67884.0,67883.0,0.83132531]
[1730094729479,1e-06,67884.0,67883.0,0.83232531]
[1730094729808,1e-06,67884.0,67883.0,0.74303056]
[1730094730023,1e-06,67884.0,67883.0,0.83932531]
[1730094730909,1e-06,67884.0,67883.0,0.74703056]
[1730094731128,1e-06,67884.0,67883.0,0.83932531]
[1730094732153,1e-06,67884.0,67883.0,0.74703056]
[1730094732564,1e-06,67884.0,67883.0,1.16387985]
[1730094732788,1e-06,67884.0,67883.0,1.2561746]
[1730094733234,1e-06,67884.0,67883.0,1.16387985]
[1730094735369,1e-06,67884.0,67883.0,1.47602408]
[1730094735571,1e-06,67884.0,67883.0,1.2581746]
[1730094737362,1e-06,67884.0,67883.0,1.2561746]
[1730094739341,1e-06,67884.0,67883.0,1.16387985]
[1730094739956,1e-06,67884.0,67883.0,1.16587985]
[1730094740163,1e-06,67884.0,67883.0,1.2581746]
[1730094740987,1e-06,67884.0,67883.0,1.2598166]
[1730094741933,1e-06,67884.0,67883.0,1.2578166]
[1730094742160,1e-06,67884.0,67883.0,1.16552185]
[1730094742364,1e-06,67884.0,67883.0,1.16752185]
[1730094742742,1e-06,67884.0,67883.0,1.2598166]
[1730094745652,1e-06,67884.0,67883.0,1.2578166]
[1730094746267,1e-06,67884.0,67883.0,1.2598166]
[1730094746691,1e-06,67884.0,67883.0,1.16552185]
[1730094746902,1e-06,67884.0,67883.0,1.16752185]
[1730094747116,1e-06,67884.0,67883.0,1.2598166]
[1730094748532,1e-06,67884.0,67883.0,1.2578166]
[1730094748957,1e-06,67884.0,67883.0,1.2598166]
[1730094750262,1e-06,67884.0,67883.0,1.2578166]
[1730094752903,1e-06,67884.0,67883.0,1.3016229]
[1730094755601,1e-06,67884.0,67883.0,1.21132815]
[1730094755843,1e-06,67884.0,67883.0,1.2598166]
[1730094756498,1e-06,67884.0,67883.0,1.30554916]
[1730094757113,1e-06,67884.0,67883.0,1.37125862]
[1730094757329,1e-06,67884.0,67883.0,1.30554916]
[1730094757558,1e-06,67884.0,67883.0,1.37125862]
[1730094757806,1e-06,67884.0,67883.0,1.36925862]
[1730094758006,1e-06,67884.0,67883.0,1.37125862]
[1730094758610,1e-06,67884.0,67883.0,1.53060041]
[1730094759546,1e-06,67884.0,67883.0,1.46489095]
[1730094759748,1e-06,67884.0,67883.0,1.46289095]
[1730094760396,1e-06,67884.0,67883.0,1.46489095]
[1730094760782,1e-06,67884.0,67883.0,1.46289095]
[1730094761833,1e-06,67884.0,67883.0,1.30354916]
[1730094765501,1e-06,67884.0,67883.0,1.21325441]
[1730094766175,1e-06,67884.0,67883.0,1.21125441]
[1730094767225,1e-06,67884.0,67883.0,1.30554916]
[1730094767403,1e-06,67884.0,67883.0,1.30354916]
[1730094768210,1e-06,67884.0,67883.0,1.30554916]
[1730094768445,1e-06,67884.0,67883.0,1.30354916]
[1730094771082,1e-06,67884.0,67883.0,1.22054916]
[1730094772825,1e-06,67884.0,67883.0,1.03595966]
[1730094773029,1e-06,67884.0,67883.0,1.12514916]
[1730094773376,1e-06,67884.0,67883.0,1.12714916]
[1730094774128,1e-06,67884.0,67883.0,1.03485441]
[1730094774365,1e-06,67884.0,67883.0,1.12714916]
[1730094774587,1e-06,67884.0,67883.0,1.03285441]
[1730094775016,1e-06,67884.0,67883.0,1.12514916]
[1730094775249,1e-06,67884.0,67883.0,1.03485441]
[1730094775551,1e-06,67884.0,67883.0,1.12514916]
[1730094775762,1e-06,67884.0,67883.0,1.12714916]
[1730094776206,1e-06,67884.0,67883.0,1.03285441]
[1730094776333,1e-06,67884.0,67883.0,1.12514916]
[1730094778596,1e-06,67884.0,67883.0,1.12714916]
[1730094779016,1e-06,67884.0,67883.0,1.28939951]
[1730094779230,1e-06,67884.0,67883.0,1.12714916]
[1730094779456,1e-06,67884.0,67883.0,1.28939944]
[1730094780492,1e-06,67884.0,67883.0,1.28739944]
[1730094781129,1e-06,67884.0,67883.0,1.28939944]
[1730094781565,0.0752,67899.0,67898.0,0.275279]
[1730094781779,0.21984948,67918.0,67900.0,0.36756975]
[1730094782000,0.21984948,67918.0,67900.0,0.51807356]
[1730094782208,0.21984948,67918.0,67905.0,0.270264]
[1730094782414,0.21984948,67918.0,67905.0,0.51306256]
[1730094783302,0.0441993,67924.0,67905.0,0.51806256]
[1730094783506,0.21984948,67917.0,67905.0,0.51806256]
[1730094783731,0.0234582,67906.0,67905.0,0.51806256]
[1730094784162,0.0184582,67906.0,67905.0,0.51806256]
[1730094784840,2e-07,67906.0,67905.0,0.52406256]
[1730094785049,0.000834,67908.0,67905.0,0.52406256]
[1730094785050,2e-07,67908.0,67907.0,0.27526]
[1730094785263,2e-07,67908.0,67907.0,0.71441801]
[1730094785487,2e-07,67908.0,67907.0,0.59716812]
[1730094785717,2e-07,67908.0,67907.0,0.43776381]
[1730094785925,2e-07,67908.0,67907.0,0.53005856]
[1730094786137,2e-07,67908.0,67907.0,0.43776381]
[1730094786558,2e-07,67908.0,67907.0,0.48458725]
[1730094786970,2e-07,67908.0,67907.0,0.48158725]
[1730094787173,2e-07,67908.0,67907.0,0.52805856]
[1730094787377,2e-07,67908.0,67907.0,0.53705856]
[1730094787527,2e-07,67908.0,67907.0,0.57686039]
[1730094787734,2e-07,67908.0,67907.0,0.53305856]
[1730094787944,2e-07,67908.0,67907.0,0.53705856]
[1730094788146,2e-07,67908.0,67907.0,0.5479357]
[1730094788362,2e-07,67908.0,67907.0,0.70889995]
[1730094788709,2e-07,67908.0,67907.0,0.61359937]
[1730094788932,0.000834,67928.0,67907.0,0.61359937]
[1730094788933,0.000834,67928.0,67927.0,0.247216]
[1730094789155,0.000834,67928.0,67927.0,0.36251075]
[1730094789373,0.000834,67928.0,67927.0,0.4598055]
[1730094789603,0.000834,67928.0,67927.0,0.36751075]
[1730094790267,0.000834,67928.0,67927.0,0.36951075]
[1730094790480,0.000834,67928.0,67927.0,0.37251075]
[1730094790874,0.000834,67928.0,67927.0,0.52301456]
[1730094791100,0.000834,67928.0,67927.0,0.52101456]
[1730094791313,0.000834,67928.0,67927.0,0.51801456]
[1730094791725,0.000834,67928.0,67927.0,0.52201456]
[1730094792380,0.000834,67928.0,67927.0,0.52501456]
[1730094793430,0.000834,67928.0,67927.0,0.61730931]
[1730094795600,0.000834,67928.0,67927.0,0.53594159]
[1730094796065,0.000834,67928.0,67927.0,0.62823634]
[1730094796310,0.000834,67928.0,67927.0,0.53594159]
[1730094797380,0.000834,67928.0,67927.0,0.62823634]
[1730094797590,0.000834,67928.0,67927.0,0.53594159]
[1730094797817,0.000834,67928.0,67927.0,0.62823634]
[1730094798237,0.000834,67928.0,67927.0,0.53594159]
[1730094799870,0.000834,67928.0,67927.0,0.63823634]
[1730094801022,0.000834,67928.0,67927.0,0.54594159]
[1730094801216,0.000834,67928.0,67927.0,0.53594159]
[1730094801417,0.000834,67928.0,67927.0,0.54094159]
[1730094801630,0.000834,67928.0,67927.0,0.53594159]
[1730094801798,0.000834,67928.0,67927.0,0.54094159]
[1730094801980,0.000834,67928.0,67927.0,0.53594159]
[1730094803025,0.000834,67928.0,67927.0,0.44364684]
[1730094804225,0.000834,67928.0,67927.0,0.53594159]
[1730094804426,0.000834,67928.0,67927.0,0.44364684]
[1730094811098,0.000834,67928.0,67927.0,0.53594159]
[1730094811575,0.000834,67928.0,67927.0,0.62823634]
[1730094812775,0.0768,67951.0,67946.0,0.147175]
[1730094813019,0.0768,67951.0,67946.0,0.51297356]
[1730094813020,0.22068348,67948.0,67946.0,0.51297356]
[1730094813263,0.22068348,67948.0,67946.0,0.51797356]
[1730094813542,0.000834,67948.0,67946.0,0.51797356]
[1730094814221,0.000834,67948.0,67946.0,0.52197356]
[1730094814936,0.000834,67948.0,67946.0,0.51797356]
[1730094815379,0.000834,67948.0,67946.0,0.52497356]
[1730094817120,0.000834,67948.0,67946.0,0.53593467]
[1730094824625,0.000834,67948.0,67946.0,0.62903467]
[1730094825568,0.000834,67948.0,67946.0,0.71033467]
[1730094830711,0.000834,67948.0,67946.0,0.73985467]
[1730094832004,0.000834,67948.0,67946.0,0.74985467]
[1730094833340,0.000834,67948.0,67946.0,1.16670396]
[1730094834486,0.000834,67948.0,67946.0,1.07440921]
[1730094834919,0.000834,67948.0,67946.0,1.16670396]
[1730094835391,0.000834,67948.0,67946.0,1.16870396]
[1730094835827,0.000834,67948.0,67946.0,1.16670396]
[1730094837252,0.000834,67948.0,67946.0,1.18841788]
[1730094838904,0.000834,67948.0,67946.0,1.19041788]
[1730094839345,0.000834,67948.0,67946.0,1.18841788]
[1730094841356,0.000834,67948.0,67946.0,0.92172313]
[1730094841554,0.000834,67948.0,67946.0,1.01401788]
[1730094845086,0.000834,67948.0,67946.0,0.59716859]
[1730094848915,0.000834,67948.0,67946.0,0.49716859]
[1730094850674,0.000834,67948.0,67946.0,0.54284178]
[1730094850921,0.000834,67948.0,67946.0,0.95969107]
[1730094851130,0.000834,67948.0,67946.0,0.91401788]
[1730094853143,0.000834,67948.0,67946.0,0.75420313]
[1730094853591,0.091924,67947.0,67946.0,0.75420313]
[1730094854230,0.000924,67947.0,67946.0,0.75020313]
[1730094854465,0.000924,67947.0,67946.0,0.75420313]
[1730094854698,0.000924,67947.0,67946.0,0.75620313]
[1730094854903,0.000924,67947.0,67946.0,0.77920313]
[1730094855105,0.000924,67947.0,67946.0,0.81172313]
[1730094855756,0.000924,67947.0,67946.0,0.80872313]
[1730094856192,0.000924,67947.0,67946.0,0.81172313]
[1730094856450,0.000924,67947.0,67946.0,0.80772313]
[1730094856694,0.000924,67947.0,67946.0,0.80872313]
[1730094856910,0.000924,67947.0,67946.0,0.39187384]
[1730094858043,0.000924,67947.0,67946.0,0.38987384]
[1730094858309,0.000924,67947.0,67946.0,0.36035384]
[1730094859258,0.000924,67947.0,67946.0,0.35635384]
[1730094859484,0.000924,67947.0,67946.0,0.35735384]
[1730094859712,0.000924,67947.0,67946.0,0.35635384]
[1730094859928,0.097224,67947.0,67946.0,0.35635384]
[1730094860151,0.27261875,67947.0,67946.0,0.32639273]
[1730094860567,0.180324,67947.0,67946.0,0.32639273]
[1730094861037,0.180324,67947.0,67946.0,0.31939273]
[1730094861491,0.180324,67947.0,67946.0,0.32239273]
[1730094861946,0.180324,67947.0,67946.0,0.31939273]
[1730094862214,0.180324,67947.0,67946.0,0.32139273]
[1730094862962,0.27261875,67947.0,67946.0,0.32139273]
[1730094863184,0.27261875,67947.0,67946.0,0.31939273]
[1730094863653,0.27809877,67947.0,67946.0,0.32039273]
[1730094863906,0.27809877,67947.0,67946.0,0.31939273]
[1730094864131,0.18580402,67947.0,67946.0,0.31939273]
[1730094865278,0.18680402,67947.0,67946.0,0.31939273]
[1730094865502,0.181324,67947.0,67946.0,0.31939273]
[1730094867920,0.18680402,67947.0,67946.0,0.31939273]
[1730094870101,0.18680402,67947.0,67946.0,0.41939273]
[1730094871902,0.181324,67947.0,67946.0,0.41939273]
[1730094876670,0.180324,67947.0,67946.0,0.41939273]
[1730094876899,0.180324,67947.0,67946.0,0.42039273]
[1730094877260,0.097224,67947.0,67946.0,0.42039273]
[1730094878693,0.000924,67947.0,67946.0,0.42039273]
[1730094887271,0.092824,67947.0,67946.0,0.42039273]
[1730094887384,0.173524,67947.0,67946.0,0.42039273]
[1730094887588,0.173524,67947.0,67946.0,0.32039273]
[1730094888004,0.175524,67947.0,67946.0,0.02171392]
[1730094888215,0.175524,67947.0,67946.0,0.02184809]
[1730094888216,0.083624,67947.0,67946.0,0.02184809]
[1730094888644,0.081624,67947.0,67946.0,0.02184809]
[1730094888858,0.175524,67947.0,67946.0,0.17002309]
[1730094889095,0.175524,67947.0,67946.0,0.17102309]
[1730094890149,0.175524,67947.0,67946.0,0.02384809]
[1730094892514,0.329697,67947.0,67946.0,0.02384809]
[1730094892731,0.337697,67947.0,67946.0,0.02384809]
[1730094892902,0.339697,67947.0,67946.0,0.02384809]
[1730094893363,0.337697,67947.0,67946.0,0.02384809]
[1730094894266,0.185524,67947.0,67946.0,0.02384809]
[1730094895034,0.180524,67947.0,67946.0,0.02384809]
[1730094898188,0.180524,67947.0,67946.0,0.17102309]
[1730094898451,0.27281875,67947.0,67946.0,0.17102309]
[1730094898606,0.002924,67947.0,67946.0,0.17102309]
[1730094899030,0.10021875,67947.0,67946.0,0.17102309]
[1730094899886,0.10021875,67947.0,67946.0,0.02384809]
[1730094900090,0.10021875,67947.0,67946.0,0.17102309]
[1730094900706,0.10021875,67947.0,67946.0,0.02384809]
[1730094900916,0.10021875,67947.0,67946.0,0.17102309]
[1730094901117,0.09521875,67947.0,67946.0,0.17102309]
[1730094901359,0.10021875,67947.0,67946.0,0.02384809]
[1730094901565,0.007924,67947.0,67946.0,0.02384809]
[1730094901943,0.007924,67947.0,67946.0,0.17102309]
[1730094902167,0.007924,67947.0,67946.0,0.02384809]
[1730094902346,0.10021875,67947.0,67946.0,0.02384809]
[1730094907383,0.007924,67947.0,67946.0,0.02384809]
[1730094909781,0.155097,67947.0,67946.0,0.02384809]
[1730094909996,0.007924,67947.0,67946.0,0.02384809]
[1730094910405,0.155097,67947.0,67946.0,0.02384809]
[1730094911295,0.42869175,67947.0,67946.0,0.02384809]
[1730094911524,0.47278055,67947.0,67946.0,0.02384809]
[1730094911745,0.73010395,67947.0,67946.0,0.02384809]
[1730094911959,0.81828156,67947.0,67946.0,0.02384809]
[1730094912166,0.81828156,67947.0,67946.0,0.02284809]
[1730094912167,0.81628156,67947.0,67946.0,0.02284809]
[1730094912423,0.69633056,67947.0,67946.0,0.02284809]
[1730094912630,0.69633056,67947.0,67946.0,0.02384809]
[1730094912826,0.58610854,67947.0,67946.0,0.02384809]
[1730094913049,0.67427658,67947.0,67946.0,0.02384809]
[1730094913298,0.67427658,67947.0,67946.0,0.02284809]